Workbook

Sheet доходы
E1: "УТВЕРЖДАЮ"
E2: Глава Ивановского сельсовета
E3: ________________ Э.М.Диденко
A5: Сводная бюджетная роспись на 2021 год и плановый период 2022-2023 года
A6: Администрация Ивановского сельсовета
A7: Доходы
A8: Наименование | B8: Экономи-ческая классифи-кация расходов | C8: Всего | D8: 2021 год | E8: 2022 год | F8: 2023 год
A9: Налог на доходы физических лиц | B9: 1 01 02010 01 1000 110 | C9: =D9+E9+F9 -> 10994 | D9: 3381 | E9: 3658 | F9: 3955
A10: Налог на имущество физических лиц | B10: 1 06 01030 10 1000 110 | C10: =D10+E10+F10 -> 9 | D10: 3 | E10: 3 | F10: 3
A11: Земельный налог | B11: 1 06 06000 00 0000 110 | C11: 12 | D11: 4 | E11: 4 | F11: 4
A12: Государственная пошлина за совершение нотариальных действий | B12: 1 08 04020 01 1000 110 | C12: 0 | D12: 0 | E12: 0 | F12: 0
A13: Доходы получаемые в виде арендной платы | B13: 1 11 05013 10 0000 120 | C13: 0 | D13: 0 | E13: 0 | F13: 0
A14: Доходы от сдачив аренду имущества | B14: 1 11 05035 10 0000 120 | C14: 847.8 | D14: 282.6 | E14: 282.6 | F14: 282.6
A15: Плата за негативное воздействие на окружающую среду | B15: 1 12 01000 01 0000 120 | C15: 0 | D15: 0 | E15: 0 | F15: 0
A16: Прочие доходы от оказания платных услуг | B16: 1 13 01995 10 0000 130 | C16: 0 | D16: 0 | E16: 0 | F16: 0
A17: Прочие доходы от компенсации затрат поселения | B17: 1 13 02995 20 0000 130 | C17: 0 | D17: =SUM(E17:H17) -> 0 | E17: =SUM(F17:I17) -> 0 | F17: =SUM(G17:J17) -> 0
A18: Дотация бюджетам поселений на выравнивание уровня бюджетной обеспеченности (районная) | B18: 2 02 15001 10 0000 151 | C18: 0 | D18: 0 | E18: 0 | F18: 0
A19: Дотация бюджетам поселений на выравнивание уровня бюджетной обеспеченности (областная) | B19: 2 02 15001 10 0000 151 | C19: =D19+E19+F19 -> 336.859 | D19: 108.204 | E19: 112.53 | F19: 116.125
A20: Субвенции бюджетам поселений на государственную регистрацию актов гражданского состояния | B20: 2 02 35930 10 0000 151 | C20: 2.4 | D20: 0.8 | E20: 0.8 | F20: 0.8
A21: Субвенции бюджетам поселений на осуществление первичного воинского учета | B21: 2 02 35118 10 0000 151 | C21: 420.4 | D21: 137.2 | E21: 138.7 | F21: 144.5
A22: Прочие межбюджетные трансферты | B22: 2 02 49999 10 0000 151 | C22: 15295.7 | D22: 5338.4 | E22: 5104.8 | F22: 4852.5
A23: Итого | C23: 27918.159 | D23: =SUM(D9:D22) -> 9255.204 | E23: =SUM(E9:E22) -> 9304.43 | F23: =SUM(F9:F22) -> 9358.525
A25: Глава Ивановского сельсовета | C25: Э.М.Диденко

Sheet расходы
I1: "УТВЕРЖДАЮ"
I2: Глава Ивановского сельсовета
I3: Э.М.Диденко
A5: Сводная бюджетная роспись на 2021 год и плановый период 2022-2023 года
A6: Администрация Ивановского сельсовета
A7: Расходы
A8: Наименование | B8: Код главы | C8: Раздел | D8: Подраздел | E8: Целевая статья расходов | F8: Вид расходов | G8: Всего | H8: 2020 год | I8: 2021 год | J8: 2022 год
A9: Заработная плата | B9: 011 | C9: 0100 | D9: 0102 | E9: 8880080010 | F9: 121 | G9: =H9+I9+J9 -> 2679 | H9: 893 | I9: 893 | J9: 893
A10: Начисления на выплаты по оплате труда | B10: 011 | C10: 0100 | D10: 0102 | E10: 8880080010 | F10: 129 | G10: =H10+I10+J10 -> 810 | H10: 270 | I10: 270 | J10: 270
A11: ИТОГО | G11: 3489 | H11: =H9+H10 -> 1163 | I11: =I9+I10 -> 1163 | J11: =J9+J10 -> 1163
A12: Заработная плата | B12: 011 | C12: 0100 | D12: 0104 | E12: 8880080040 | F12: 121 | G12: 1650 | H12: 550 | I12: 550 | J12: 550
A13: начисления на выплаты по оплате труда | B13: 011 | C13: 0100 | D13: 0104 | E13: 8880080040 | F13: 129 | G13: 498 | H13: 166 | I13: 166 | J13: 166
A14: Прочие выплаты | B14: 011 | C14: 0100 | D14: 0104 | E14: 8880080040 | F14: 122 | G14: 274.5 | H14: 91.5 | I14: 91.5 | J14: 91.5
A15: Прочие закупки товаров, работ, услуг для гос.нужд | B15: 011 | C15: 0100 | D15: 0104 | E15: 8880080040 | F15: 244 | G15: 2262.459 | H15: 848.704 | I15: 688.93 | J15: 724.825
A16: Уплата иных платежей | B16: 011 | C16: 0100 | D16: 0104 | E16: 8880080040 | F16: 853 | G16: 15 | H16: 5 | I16: 5 | J16: 5
A17: ИТОГО | G17: 4699.959 | H17: =SUM(H12:H16) -> 1661.204 | I17: =SUM(I12:I16) -> 1501.43 | J17: =SUM(J12:J16) -> 1537.325
A18: Перечисления другим бюджетам бюджетной системы Российской Федерации | B18: 011 | C18: 0100 | D18: 0106 | E18: 8880087040 | F18: 540 | G18: =H18+I18+J18 -> 36 | H18: 12 | I18: 12 | J18: 12
G19: =H19+I19+J19 -> 36 | H19: =H18 -> 12 | I19: =I18 -> 12 | J19: =J18 -> 12
A20: Резервные фонды | B20: 011 | C20: 0100 | D20: 0111 | E20: 8880010620 | F20: 800 | G20: 15 | H20: 5 | I20: 5 | J20: 5
A21: ИТОГО | G21: 15 | H21: =H20 -> 5 | I21: =I20 -> 5 | J21: =J20 -> 5
A22: Заработная плата | B22: 011 | C22: 0100 | D22: 0113 | E22: 8880080140 | F22: 111 | G22: 6694.8 | H22: 2231.6 | I22: 2231.6 | J22: 2231.6
A23: Начисления на выплаты по оплате труда | B23: 011 | C23: 0100 | D23: 0113 | E23: 8880080140 | F23: 119 | G23: 2021.7 | H23: 673.9 | I23: 673.9 | J23: 673.9
A24: Прочие выплаты | B24: 011 | C24: 0100 | D24: 0113 | E24: 8880080140 | F24: 112 | G24: 276.9 | H24: 91.5 | I24: 91.5 | J24: 93.9
A25: Прочие закупки товаров, работ, услуг для гос.нужд | B25: 011 | C25: 0100 | D25: 0113 | E25: 8880080140 | F25: 244 | G25: 0 | H25: 0 | I25: 0 | J25: 0
A26: Уплата иных платежей | B26: 011 | C26: 0100 | D26: 0113 | E26: 8880080140 | F26: 853 | G26: =H26+I26+J26 -> 15 | H26: 5 | I26: 5 | J26: 5
A27: Государственная регистрация актов гражданского состояния | B27: 011 | C27: 0100 | D27: 0113 | E27: 1060210190 | F27: 244 | G27: 2.4 | H27: 0.8 | I27: 0.8 | J27: 0.8
A28: ИТОГО | G28: 9010.8 | H28: =SUM(H22:H27) -> 3002.8 | I28: =SUM(I22:I27) -> 3002.8 | J28: =SUM(J22:J27) -> 3005.2
A29: Заработная плата | B29: 011 | C29: 0200 | D29: 0203 | E29: 8880051180 | F29: 121 | G29: 264.4 | H29: 86.4 | I29: 89 | J29: 89
A30: Прочие выплаты | B30: 011 | C30: 0200 | D30: 0203 | E30: 8880051180 | F30: 122 | G30: =H30+I30+J30 -> 36 | H30: 12 | I30: 12 | J30: 12
A31: Начисления на выплаты по оплате труда | B31: 011 | C31: 0200 | D31: 0203 | E31: 8880051180 | F31: 129 | G31: 79.9 | H31: 26.1 | I31: 26.9 | J31: 26.9
A32: Прочие закупки товаров, работ, услуг для гос.нужд | B32: 011 | C32: 0200 | D32: 0203 | E32: 8880051180 | F32: 244 | G32: =H32+I32+J32 -> 40.1 | H32: 12.7 | I32: 10.8 | J32: 16.6
A33: ИТОГО | G33: 420.4 | H33: =H29+H31+H30+H32 -> 137.2 | I33: =I29+I31+I30+I32 -> 138.7 | J33: =J29+J31+J30+J32 -> 144.5
A34: Защита населения | B34: 011 | C34: 0300 | D34: 0309 | E34: 0110110190 | F34: 244 | G34: =H34+I34+J34 -> 5 | H34: 5 | I34: 0 | J34: 0
A35: ИТОГО | G35: =G34 -> 5 | H35: =H34 -> 5 | I35: =I34 -> 0 | J35: =J34 -> 0
A36: Пожарная безопасность | B36: 011 | C36: 0300 | D36: 0310 | E36: 0810110190 | F36: 244 | G36: =H36+I36+J36 -> 30 | H36: 30 | I36: 0 | J36: 0
A37: ИТОГО | G37: =G36 -> 30 | H37: =H36 -> 30 | I37: =I36 -> 0 | J37: =J36 -> 0
A38: Дорожное хозяйство (дорожные фонды) | B38: 011 | C38: 0400 | D38: 0409 | E38: 8880080180 | F38: 244 | G38: 0 | H38: 0 | I38: 0 | J38: 0
A39: ИТОГО | G39: 0 | H39: =H38 -> 0 | I39: =I38 -> 0 | J39: =J38 -> 0
A40: Социальная экономика | B40: 011 | C40: 0400 | D40: 0412 | E40: 0210110192 | F40: 244 | G40: 3 | H40: 3 | I40: 0 | J40: 0
A41: Социальная экономика | B41: 011 | C41: 0400 | D41: 0412 | E41: 0310110193 | F41: 244 | G41: =H41+I41+J41 -> 2 | H41: 2 | I41: 0 | J41: 0
A42: Социальная экономика | B42: 011 | C42: 0400 | D42: 0412 | E42: 0410110194 | F42: 244 | G42: =H42+I42+J42 -> 15 | H42: 15 | I42: 0 | J42: 0
A43: ИТОГО | G43: =G40+G41+G42 -> 20 | H43: =H40+H41+H42 -> 20 | I43: =I40+I41+I42 -> 0 | J43: =J40+J41+J42 -> 0
A44: Жилищно-коммунальное хозяйство | B44: 011 | C44: 0500 | D44: 0502 | E44: 0110110190 | F44: 244 | G44: 10 | H44: 10 | I44: 0 | J44: 0
A45: Благоустройство | B45: 011 | C45: 0500 | D45: 0503 | E45: 8880080190 | F45: 244 | G45: 30 | H45: 30 | I45: 0 | J45: 0
A46: ИТОГО | G46: 40 | H46: =H44+H45 -> 40 | I46: =I44+I45 -> 0 | J46: =J44+J45 -> 0
A47: Окружающая среда | B47: 011 | C47: 0600 | D47: 0605 | E47: 0710110197 | F47: 244 | G47: =H47+I47+J47 -> 2 | H47: 2 | I47: 0 | J47: 0
A48: ИТОГО | G48: =H48+I48+J48 -> 2 | H48: =SUM(H47:H47) -> 2 | I48: =SUM(I47:I47) -> 0 | J48: =SUM(J47:J47) -> 0
A49: Прочие закупки товаров, работ, услуг для гос.нужд | B49: 011 | C49: 0800 | D49: 0801 | E49: 10101S7110 | F49: 244 | G49: =H49+I49+J49 -> 50 | H49: 50 | I49: 0 | J49: 0
A50: Заработная плата | B50: 011 | C50: 0800 | D50: 0801 | E50: 8880080141 | F50: 111 | G50: 7237.3 | H50: 2233.5 | I50: 2501.9 | J50: 2501.9
A51: начисления на выплаты по оплате труда | B51: 011 | C51: 0800 | D51: 0801 | E51: 8880080141 | F51: 119 | G51: 2185.7 | H51: 674.5 | I51: 755.6 | J51: 755.6
A52: Прочие выплаты | B52: 011 | C52: 0800 | D52: 0801 | E52: 8880080141 | F52: 122 | G52: 0 | H52: 0 | I52: 0 | J52: 0
A53: Прочие закупки товаров, работ, услуг для гос.нужд | B53: 011 | C53: 0800 | D53: 0801 | E53: 8880080141 | F53: 244 | G53: 27 | H53: 9 | I53: 9 | J53: 9
A54: Уплата иных платежей | B54: 011 | C54: 0800 | D54: 0801 | E54: 8880080141 | F54: 853 | G54: 15 | H54: 5 | I54: 5 | J54: 5
A55: ИТОГО | G55: =H55+I55+J55+G49 -> 9565 | H55: =SUM(H49:H54) -> 2972 | I55: =SUM(I49:I54) -> 3271.5 | J55: =SUM(J49:J54) -> 3271.5
A56: Социальное обеспечение | B56: 011 | C56: 1000 | D56: 1001 | E56: 8880080120 | F56: 312 | G56: 630 | H56: 200 | I56: 210 | J56: 220
A57: ИТОГО | G57: 630 | H57: =SUM(H56:H56) -> 200 | I57: =SUM(I56:I56) -> 210 | J57: =SUM(J56:J56) -> 220
A58: Физическая культура и спорт | B58: 011 | C58: 1100 | D58: 1101 | E58: 0510110190 | F58: 244 | G58: 5 | H58: 5 | I58: 0 | J58: 0
G59: 5 | H59: =H58 -> 5 | I59: =I58 -> 0 | J59: =J58 -> 0
A60: ВСЕГО | G60: 27918.159 | H60: =H11+H17+H21+H28+H33+H39+H46+H55+H57+H59+H19+H35+H37+H43+H48 -> 9255.204 | I60: =I11+I17+I21+I28+I33+I39+I46+I55+I57+I59+I19+I35+I37+I43+I48 -> 9304.43 | J60: =J11+J17+J21+J28+J33+J39+J46+J55+J57+J59+J19+J35+J37+J43+J48 -> 9358.525
A62: Глава и Ивановского сельсовета | C62: Э.М.Диденко

Sheet Лист3
